bitfinex/quotes_ETHUSD_20250131
["timestamp","ask_amount","ask_price","bid_price","bid_amount"]
[1738297153026,3.10223,3223.5,3223.1,0.85182167]
[1738297153197,3.10212,3223.6,3223.2,1.53538217]
[1738297153401,3.10212,3223.6,3223.3,0.03102119]
[1738297154229,3.9209,3223.9,3223.2,1.53538217]
[1738297155039,3.10241,3223.3,3223.0,14.502]
[1738297155424,3.1026,3223.1,3223.0,14.502]
[1738297155801,3.24725587,3223.1,3223.0,14.3]
[1738297156331,3.1026,3223.1,3223.0,14.3]
[1738297156721,3.2472125,3223.1,3223.0,14.3]
[1738297156927,3.2472125,3223.1,3223.0,15.94306028]
[1738297156928,0.1446125,3223.1,3223.0,15.94306028]
[1738297157258,3.10251,3223.2,3223.0,15.94306028]
[1738297157740,0.14457701,3223.1,3223.0,15.94306028]
[1738297158255,3.10251,3223.2,3223.0,15.94306028]
[1738297158438,0.14458095,3223.1,3223.0,15.94306028]
[1738297158631,3.10241,3223.3,3223.0,15.94306028]
[1738297158825,0.14458095,3223.1,3223.0,15.94306028]
[1738297159031,3.10241,3223.3,3223.0,15.94306028]
[1738297159232,0.14459673,3223.1,3223.0,15.94306028]
[1738297159454,3.10241,3223.3,3223.0,15.94306028]
[1738297159753,0.14459673,3223.1,3223.0,15.94306028]
[1738297160053,3.10241,3223.3,3223.0,15.94306028]
[1738297160354,0.14460461,3223.1,3223.0,14.3]
[1738297160521,3.10241,3223.3,3223.0,14.3]
[1738297161155,0.14458883,3223.2,3223.0,14.3]
[1738297161461,3.10241,3223.3,3223.0,14.3]
[1738297161758,0.14458883,3223.1,3223.0,14.3]
[1738297161960,3.10241,3223.3,3223.0,15.05832479]
[1738297162255,0.14458883,3223.2,3223.0,15.05832479]
[1738297162431,3.10241,3223.3,3223.0,15.05832479]
[1738297162614,0.14458883,3223.1,3223.0,15.05832479]
[1738297162814,3.10233,3223.4,3223.0,15.05832479]
[1738297163019,3.24699094,3223.3,3223.1,0.0310229]
[1738297163317,3.24699094,3223.3,3223.0,15.05832479]
[1738297164339,3.24699094,3223.3,3223.1,1.58496248]
[1738297165072,0.14458094,3223.3,3223.1,1.58496248]
[1738297165273,3.10234,3223.4,3223.1,1.61598517]
[1738297165432,0.14459671,3223.2,3223.1,1.61598517]
[1738297165634,3.10234,3223.4,3223.1,1.61598517]
[1738297165635,3.10234,3223.4,3223.1,1.58496248]
[1738297165833,0.14459671,3223.2,3223.1,1.61598539]
[1738297166148,3.10234,3223.4,3223.1,1.58496248]
[1738297166461,3.10234,3223.4,3223.1,1.61598539]
[1738297166663,0.14459671,3223.3,3223.1,1.61598539]
[1738297166862,0.14459671,3223.3,3223.2,4.76993102]
[1738297167061,0.8228,3224.6,3223.3,0.765]
[1738297167263,0.8228,3224.6,3223.5,0.765]
[1738297167568,3.10127,3224.5,3223.9,3.86681]
[1738297167875,3.10127,3224.5,3224.0,0.03101247]
[1738297168083,3.10127,3224.5,3224.0,14.33101247]
[1738297168238,3.101,3224.8,3224.1,12.03164]
[1738297168566,3.10107,3224.7,3224.1,12.03164]
[1738297168733,3.10107,3224.7,3224.2,1.79137398]
[1738297171269,3.10107,3224.7,3224.2,1.99337398]
[1738297171471,3.10107,3224.7,3224.3,0.8075]
[1738297171872,3.10087,3224.9,3224.4,14.33101]
[1738297172084,3.10077,3225.0,3224.4,17.40134]
[1738297172288,3.10077,3225.0,3224.5,1.820884]
[1738297172579,3.9006,3225.1,3224.5,16.120884]
[1738297172782,3.9006,3225.1,3224.6,0.03100679]
[1738297173092,3.9006,3225.1,3224.5,16.120884]
[1738297173242,3.10085,3225.0,3224.6,8.93]
[1738297173439,3.10085,3225.0,3224.7,1.6120884]
[1738297173669,0.14522747,3224.9,3224.8,8.93]
[1738297175678,3.1007,3225.1,3224.8,8.93]
[1738297175838,0.14522747,3224.9,3224.8,8.93]
[1738297176261,3.1007,3225.1,3224.8,8.93]
[1738297176461,3.1007,3225.1,3224.9,1.05420884]
[1738297176661,3.1007,3225.1,3224.9,9.98420884]
[1738297178137,3.1007,3225.1,3224.9,1.05420884]
[1738297178433,3.1007,3225.1,3224.8,0.7717]
[1738297181602,3.10078,3225.0,3224.8,0.7717]
[1738297181885,3.71246312,3225.7,3224.9,0.03100607]
[1738297182084,3.10036,3225.5,3225.0,15.0729]
[1738297182385,3.10036,3225.5,3225.1,1.54139317]
[1738297182585,0.14561757,3225.4,3225.1,1.54139317]
[1738297182986,0.14561757,3225.4,3225.1,1.51039061]
[1738297183185,3.10049,3225.3,3225.1,1.51039061]
[1738297183684,0.14561757,3225.2,3225.1,1.51039061]
[1738297183873,3.10049,3225.3,3225.1,1.51039061]
[1738297184065,3.10023,3225.6,3225.2,1.67852906]
[1738297184262,0.7569,3225.9,3225.3,0.03100166]
[1738297184478,3.10027,3225.6,3225.2,7.04852906]
[1738297184674,3.10027,3225.6,3225.3,1.59785291]
[1738297184880,3.10027,3225.6,3225.3,1.62885433]
[1738297185689,3.10032,3225.5,3225.3,1.59785291]
[1738297186394,3.10027,3225.6,3225.3,1.59785291]
[1738297187492,3.1003,3225.5,3225.3,1.59785291]
[1738297187848,3.1003,3225.5,3225.4,0.69678529]
[1738297188555,3.1003,3225.5,3225.4,9.62678529]
[1738297189094,3.10029,3225.5,3225.4,9.62678529]
[1738297190295,3.24633304,3225.5,3225.4,9.62678529]
[1738297193095,3.24633304,3225.5,3225.4,8.93]
[1738297193259,4.07873304,3225.5,3225.4,8.93]
[1738297194193,3.24633304,3225.5,3225.4,8.93]
[1738297200362,3.24633304,3225.5,3225.4,5.37]
[1738297202849,4.00653304,3225.5,3225.4,5.37]
[1738297204151,3.24633304,3225.5,3225.4,5.37]
[1738297211735,4.07283304,3225.5,3225.4,5.37]
[1738297212263,3.24633304,3225.5,3225.4,5.37]
[1738297221875,4.77790734,3225.5,3225.4,5.37]
[1738297223461,4.06603304,3225.5,3225.4,5.37]
[1738297223772,3.24633304,3225.5,3225.4,5.37]
[1738297226890,0.14604304,3225.5,3225.4,5.37]
[1738297227103,3.10011,3225.7,3225.4,6.1881]
[1738297227473,0.14068302,3225.5,3225.4,6.1881]
[1738297227781,0.14068302,3225.5,3225.4,6.8100101]
[1738297227991,3.10011,3225.7,3225.4,6.8100101]
[1738297228150,0.14068302,3225.5,3225.4,6.8100101]
[1738297228355,3.10021,3225.6,3225.4,6.8100101]
[1738297228593,0.14068302,3225.5,3225.4,6.8100101]
[1738297228752,3.24097302,3225.5,3225.4,5.37]
[1738297228959,4.00487302,3225.5,3225.4,5.37]
[1738297231901,4.62072897,3225.5,3225.4,5.37]
[1738297232107,4.00487302,3225.5,3225.4,5.37]
[1738297232307,3.24097302,3225.5,3225.4,5.37]
[1738297232513,3.28255017,3225.5,3225.4,5.37]
[1738297234886,0.18226017,3225.5,3225.4,6.67160031]
[1738297235286,3.10029,3225.5,3225.4,6.67160031]
[1738297235635,3.2826211,3225.5,3225.4,6.67160031]
[1738297237991,0.1823311,3225.5,3225.4,6.67160031]
[1738297238194,3.09965,3226.2,3225.6,3.10018]
[1738297238527,3.09953,3226.3,3225.8,0.8126]
[1738297238827,3.09926,3226.6,3225.9,0.03099491]
[1738297239024,3.09907,3226.8,3226.0,15.0947]
[1738297239320,3.09921,3226.7,3226.1,17.980701]
[1738297239518,3.09896,3226.9,3226.2,5.8943801]
[1738297239728,3.09877,3227.1,3226.4,0.7989]
[1738297239729,0.60691391,3227.0,3226.4,0.7989]
[1738297239931,6.19759,3227.1,3226.5,0.03098747]
[1738297240311,3.09845,3227.5,3226.5,0.03098747]
[1738297240312,3.09857,3227.3,3226.7,0.7989]
[1738297240625,3.09838,3227.5,3226.7,0.7989]
[1738297240626,3.09838,3227.5,3226.8,0.03098536]
[1738297240917,3.09838,3227.5,3226.9,0.39289654]
[1738297241082,3.09838,3227.5,3227.0,14.33098272]
[1738297241283,3.09799,3227.9,3227.1,1.3357]
[1738297241483,3.09799,3227.9,3227.2,0.03097988]
[1738297241724,3.09799,3227.9,3227.2,3.12962988]
[1738297241886,3.09808,3227.8,3227.3,1.87653299]
[1738297242087,3.098,3227.9,3227.4,0.03097985]
[1738297242827,3.09808,3227.8,3227.3,1.87653299]
[1738297243020,3.09808,3227.8,3227.4,0.03097971]
[1738297243205,3.09818,3227.7,3227.3,1.87653299]
[1738297243409,3.09818,3227.7,3227.4,0.1876533]
[1738297243918,0.18395305,3227.6,3227.5,0.7655]
[1738297244117,0.18395305,3227.6,3227.5,15.0655]
[1738297244330,3.09779,3228.2,3227.5,18.16385]
[1738297244490,0.18409462,3227.6,3227.5,15.0655]
[1738297244690,3.09789,3228.0,3227.5,15.0655]
[1738297244891,3.09762,3228.3,3227.5,15.0655]
[1738297245090,0.18409462,3227.9,3227.5,15.0655]
[1738297245328,3.09775,3228.2,3227.5,18.16387]
[1738297245525,0.18409462,3227.8,3227.6,16.13515233]
[1738297245727,3.09762,3228.3,3227.7,3.09818]
[1738297246026,0.005,3228.4,3227.9,3.09796]
[1738297246227,0.005,3228.4,3228.0,3.09786]
[1738297246413,0.18419687,3228.3,3228.1,0.03097185]
[1738297246726,0.005,3228.4,3228.2,14.3]
[1738297246927,0.005,3228.4,3228.3,1.43309719]
[1738297247706,0.005,3228.4,3228.3,2.22059719]
[1738297248318,0.005,3228.4,3228.3,2.25156907]
[1738297248520,0.005,3228.4,3228.3,2.25156945]
[1738297249513,0.005,3228.4,3228.3,16.55156945]
[1738297249710,0.005,3228.4,3228.3,17.07059719]
[1738297250652,0.18939341,3228.4,3228.3,17.07059719]
[1738297250815,0.005,3228.4,3228.3,17.07059719]
[1738297251013,0.18939341,3228.4,3228.3,16.52059719]
[1738297251338,0.005,3228.4,3228.3,16.72259719]
[1738297251514,0.005,3228.4,3228.3,16.52059719]
[1738297251698,3.1025,3228.4,3228.3,16.52059719]
[1738297252139,3.28689341,3228.4,3228.3,16.52059719]
[1738297252544,0.18939341,3228.4,3228.3,16.52059719]
[1738297257442,0.18939341,3228.4,3228.3,17.07059719]
[1738297259039,0.005,3228.4,3228.3,17.07059719]
[1738297259430,0.18943273,3228.4,3228.3,17.07059719]
[1738297259618,0.005,3228.4,3228.3,17.07059719]
[1738297259818,0.18943273,3228.4,3228.3,17.07059719]
[1738297260646,0.18943273,3228.4,3228.3,16.52059719]
[1738297260841,3.28693273,3228.4,3228.3,5.37]
[1738297261010,3.1025,3228.4,3228.3,5.37]
[1738297261363,3.28778218,3228.4,3228.3,6.1815]
[1738297261517,0.19028218,3228.4,3228.3,5.37]
[1738297261845,0.19028218,3228.4,3228.3,5.907]
[1738297262063,3.28778218,3228.4,3228.3,5.37]
[1738297262363,4.08098218,3228.4,3228.3,5.37]
[1738297262860,3.28778218,3228.4,3228.3,5.37]
[1738297263783,4.10818218,3228.4,3228.3,5.37]
[1738297267768,7.10818218,3228.4,3228.3,5.37]
[1738297267974,8.4384734,3228.4,3228.3,5.37]
[1738297268140,7.10818218,3228.4,3228.3,5.37]
[1738297271064,4.10818218,3228.4,3228.3,5.37]
[1738297271872,3.28778218,3228.4,3228.3,5.37]
[1738297274457,0.19028218,3228.4,3228.3,5.89067774]
[1738297275143,3.28778218,3228.4,3228.3,5.89067774]
[1738297275344,4.11278218,3228.4,3228.3,5.89067774]
[1738297275977,4.11278218,3228.4,3228.3,5.65928236]
[1738297276179,4.11278218,3228.4,3228.3,5.37]
[1738297277981,4.8338024,3228.4,3228.3,5.37]
[1738297278687,4.11278218,3228.4,3228.3,5.37]
[1738297280047,7.73240693,3228.4,3228.3,5.37]
[1738297290574,3.09818,3227.7,3227.6,5.37]
[1738297290778,3.2829551,3227.7,3227.6,5.37]
[1738297295692,4.1151551,3227.7,3227.6,5.37]
[1738297296402,3.2829551,3227.7,3227.6,5.37]
[1738297298985,0.1847751,3227.7,3227.6,5.37]
[1738297299173,3.0981,3227.8,3227.6,6.88291]
[1738297299516,0.18468467,3227.7,3227.6,6.88291]
[1738297299827,3.90562,3228.3,3227.6,6.88291]
[1738297299828,3.09761,3228.3,3227.6,6.88291]
[1738297300117,0.18463746,3228.2,3227.8,0.784]
[1738297300338,0.18463746,3228.2,3227.9,1.51149758]
[1738297300501,3.09771,3228.2,3227.9,1.51149758]
[1738297300688,3.09761,3228.3,3227.9,1.51149758]
[1738297300889,0.18467679,3228.1,3227.9,1.51149758]
[1738297301092,3.09761,3228.3,3227.9,1.51149758]
[1738297301295,3.09761,3228.3,3228.0,0.23264731]
[1738297302696,3.09761,3228.3,3228.1,0.8196]
[1738297304320,3.09761,3228.3,3228.2,5.37]
[1738297305323,3.10259,3228.4,3228.2,5.37]
[1738297305929,0.005,3228.4,3228.2,5.37]
[1738297306224,3.0976,3228.3,3228.2,5.37]
[1738297310331,3.28259917,3228.3,3228.2,5.37]
[1738297312705,0.18499917,3228.3,3228.2,5.37]
[1738297312906,0.18499917,3228.3,3228.2,5.40097479]
[1738297313123,0.005,3228.4,3228.3,0.7929]
[1738297313323,0.005,3228.4,3228.3,20.01265748]
[1738297313633,0.005,3228.4,3228.3,20.56265748]
[1738297313929,0.1900031,3228.4,3228.3,20.56265748]
[1738297314230,0.005,3228.4,3228.3,20.56265748]
[1738297316006,0.005,3228.4,3228.3,20.57015748]
[1738297320356,0.005,3228.4,3228.3,16.91505748]
[1738297320905,0.19024678,3228.4,3228.3,16.91505748]
[1738297322121,3.8879,3228.4,3228.3,14.3]
[1738297322416,0.19043939,3228.4,3228.3,14.3]
[1738297323659,3.28793939,3228.4,3228.3,14.3]
[1738297323869,4.11293939,3228.4,3228.3,14.3]
[1738297324317,0.19043939,3228.4,3228.3,15.1256]
[1738297324657,0.19043939,3228.4,3228.3,16.63816]
[1738297325214,0.19043939,3228.4,3228.3,19.73576]
[1738297325410,0.005,3228.4,3228.3,20.28576]
[1738297325664,0.005,3228.4,3228.3,19.73576]
[1738297326011,0.19032151,3228.4,3228.3,19.73576]
[1738297326241,0.005,3228.4,3228.3,20.28576]
[1738297326653,0.005,3228.4,3228.3,20.51626824]
[1738297327854,0.005,3228.4,3228.3,20.97751221]
[1738297329117,0.005,3228.4,3228.3,20.98501221]
[1738297330075,0.005,3228.4,3228.3,20.53191221]
[1738297330253,0.005,3228.4,3228.3,24.19451221]
[1738297333556,0.005,3228.4,3228.3,24.81546246]
[1738297340097,0.005,3228.4,3228.3,24.61346246]
[1738297340273,0.005,3228.4,3228.3,24.81446246]
[1738297342474,0.005,3228.4,3228.3,28.08046246]
[1738297342664,0.005,3228.4,3228.3,28.49086246]
[1738297342861,1e-05,3228.4,3228.3,28.49086246]
[1738297343067,0.7677,3230.0,3229.6,3.09629]
[1738297343265,0.18593445,3229.9,3229.7,15.15122065]
[1738297343596,3.09589,3230.1,3229.7,15.120263]
[1738297343816,6.70044839,3230.8,3229.7,14.29999]
[1738297343817,3.7957,3230.7,3229.7,14.29999]
[1738297343978,3.91612,3229.9,3229.8,14.29999]
[1738297344179,3.91612,3229.9,3229.8,5.36999]
[1738297344781,3.91588,3230.1,3229.8,5.36999]
[1738297345182,0.18613868,3230.0,3229.8,5.36999]
[1738297345410,0.18613868,3230.0,3229.8,6.820089]
[1738297349009,0.18613868,3230.0,3229.9,14.29999]
[1738297349233,3.28210868,3230.0,3229.9,14.29999]
[1738297349437,3.09597,3230.0,3229.9,14.29999]
[1738297349742,3.28221863,3230.0,3229.9,14.29999]
[1738297352820,0.18624863,3230.0,3229.9,14.29999]
[1738297353327,0.18624863,3230.0,3229.9,15.729989]
[1738297353924,3.88471,3230.3,3229.9,15.729989]
[1738297354118,0.18624863,3230.0,3229.9,15.729989]
[1738297354419,3.09579,3230.2,3229.9,15.729989]
[1738297354619,0.18624863,3230.0,3229.9,15.729989]
[1738297354827,3.09579,3230.2,3229.9,15.729989]
[1738297355415,0.18624863,3230.1,3229.9,15.729989]
[1738297355611,0.18624863,3230.1,3230.0,1.5729989]
[1738297355927,3.88469,3230.3,3230.0,1.5729989]
[1738297356293,0.18624863,3230.2,3230.0,1.5729989]
[1738297356493,3.88469,3230.3,3230.0,1.5729989]
[1738297356727,0.18624863,3230.2,3230.0,1.5729989]
[1738297357091,3.88469,3230.3,3230.0,1.5729989]
[1738297357286,0.18624863,3230.2,3230.0,1.5729989]
[1738297357487,3.88469,3230.3,3230.1,1.73029879]
[1738297357726,3.88469,3230.3,3229.9,15.729989]
[1738297357727,3.09597,3230.0,3229.9,14.29999]
[1738297358022,3.28253674,3230.0,3229.9,14.29999]
[1738297358689,0.18656674,3230.0,3229.9,14.29999]
[1738297358889,4.07173674,3230.0,3229.9,14.29999]
[1738297359426,7.07173674,3230.0,3229.9,5.36999]
[1738297359602,8.08850641,3230.0,3229.9,5.36999]
[1738297361928,8.7133516,3230.0,3229.9,5.36999]
[1738297363817,3.86365,3229.5,3229.4,5.36999]
[1738297364150,4.04984368,3229.5,3229.4,5.36999]
[1738297368542,7.04984368,3229.5,3229.4,5.36999]
[1738297368740,8.06446205,3229.5,3229.4,5.36999]
[1738297371060,8.68436305,3229.5,3229.4,5.36999]
[1738297372450,8.06446205,3229.5,3229.4,5.36999]
[1738297373262,7.04984368,3229.5,3229.4,5.36999]
[1738297382729,6.28264368,3229.5,3229.4,5.36999]
[1738297382887,0.18619368,3229.5,3229.4,5.36999]
[1738297383087,3.09634,3229.7,3229.5,0.8177]
[1738297383293,0.1857616,3229.6,3229.5,0.8177]
[1738297383523,0.1857616,3229.6,3229.5,1.436469]
[1738297385194,0.1857616,3229.6,3229.5,1.46743034]
[1738297385394,3.09607,3229.9,3229.5,1.46743034]
[1738297385620,0.18583624,3229.6,3229.5,10.39743034]
[1738297385934,3.09572,3230.3,3229.6,0.7942]
[1738297386250,3.09572,3230.3,3229.8,0.7942]
[1738297386413,0.18610726,3230.2,3229.8,0.7942]
[1738297386597,3.09572,3230.3,3229.8,0.82515683]
[1738297387694,0.18610726,3230.2,3229.8,0.82515683]
[1738297387897,3.09572,3230.3,3229.8,0.82515683]
[1738297388196,0.18610726,3230.2,3229.9,0.55127337]
[1738297388603,3.09572,3230.3,3229.9,0.55127337]
[1738297388803,0.18610726,3230.1,3229.9,0.55127337]
[1738297389010,3.09572,3230.3,3229.9,0.55127337]
[1738297389331,0.18610726,3230.2,3229.9,0.55127337]
[1738297389807,3.09572,3230.3,3229.9,0.55127337]
[1738297390009,0.18610726,3230.1,3229.9,0.55127337]
[1738297390303,3.09572,3230.3,3229.9,0.55127337]
[1738297390498,0.18610726,3230.2,3230.0,5.37]
[1738297390701,3.09572,3230.3,3230.1,1.48512734]
[1738297390896,0.18610726,3230.2,3230.1,1.48512734]
[1738297391239,3.09572,3230.3,3230.1,1.48512734]
[1738297391534,0.18610726,3230.2,3230.1,1.48512734]
[1738297392026,3.09562,3230.4,3230.1,1.48512734]
[1738297392398,0.18610726,3230.3,3230.1,1.48512734]
[1738297392832,0.18610726,3230.3,3230.2,0.68551273]
[1738297393576,3.0955,3230.5,3230.2,0.68551273]
[1738297393737,0.18610726,3230.3,3230.2,0.68551273]
[1738297394043,3.85249,3230.7,3230.3,0.7725]
[1738297394335,3.09541,3230.6,3230.4,5.37]
[1738297395134,3.09549,3230.5,3230.4,5.37]
[1738297397355,3.09539,3230.7,3230.4,6.05280127]
[1738297398042,3.09511,3230.9,3230.5,5.37]
[1738297398338,3.09504,3231.0,3230.5,5.40095156]
[1738297398525,3.09504,3231.0,3230.6,5.37]
[1738297398732,3.09504,3231.0,3230.7,1.43309516]
[1738297399036,3.09482,3231.2,3230.8,0.8328]
[1738297400326,0.18662953,3231.1,3230.8,0.8328]
[1738297401866,0.18662953,3231.1,3230.7,1.66504311]
[1738297401867,3.09502,3231.0,3230.7,1.43309516]
[1738297402009,3.09502,3231.0,3230.7,0.201]
[1738297402303,0.18687685,3230.9,3230.8,5.37]
[1738297402722,3.28198685,3230.9,3230.8,5.37]
[1738297404743,0.18687685,3230.9,3230.8,5.37]
[1738297405121,3.09484,3231.2,3230.8,5.37]
[1738297405311,0.18687685,3231.1,3230.9,0.5571]
[1738297407132,3.28179685,3231.1,3230.9,0.5571]
[1738297407714,3.28179685,3231.1,3230.9,1.321]
[1738297408336,3.28179685,3231.1,3230.9,15.621]
[1738297409016,3.28179685,3231.1,3231.0,8.93]
[1738297409217,3.28179685,3231.1,3231.0,10.4921]
[1738297409548,0.18687685,3231.1,3231.0,10.4921]
[1738297409745,0.18687685,3231.1,3231.0,15.8621]
[1738297409950,3.0946,3231.5,3231.0,15.8621]
[1738297410114,3.0946,3231.5,3231.1,0.03094538]
[1738297410447,0.18689646,3231.4,3231.2,1.58930454]
[1738297410648,0.18689646,3231.4,3231.2,15.88930454]
[1738297412049,0.18689646,3231.4,3231.3,0.7867]
[1738297412215,0.18689646,3231.4,3231.3,0.81764398]
[1738297412421,3.09437,3231.7,3231.3,0.7867]
[1738297412617,0.18689646,3231.4,3231.3,0.7867]
[1738297412840,3.09445,3231.6,3231.3,0.7867]
[1738297413047,0.18689646,3231.4,3231.3,0.7867]
[1738297413325,3.09445,3231.6,3231.3,0.7867]
[1738297413843,0.18689646,3231.5,3231.3,0.7867]
[1738297414044,0.18689646,3231.5,3231.4,1.66760045]
[1738297414359,0.18689646,3231.5,3231.4,15.96760045]
[1738297415146,3.28142646,3231.5,3231.4,15.96760045]
[1738297420230,4.10942646,3231.5,3231.4,5.37]
[1738297425366,3.28142646,3231.5,3231.4,5.37]
[1738297430781,0.18689646,3231.5,3231.4,5.37]
[1738297431171,3.09431,3231.8,3231.4,5.37]
[1738297431377,0.1873949,3231.5,3231.4,5.37]
[1738297431575,3.09431,3231.8,3231.4,7.188775]
[1738297431773,0.1873949,3231.5,3231.4,7.188775]
[1738297432080,3.09431,3231.8,3231.4,16.118775]
[1738297432386,0.1873949,3231.5,3231.4,16.118775]
[1738297432584,3.09431,3231.8,3231.4,16.118775]
[1738297432780,3.09431,3231.8,3231.5,1.6911775]
[1738297433969,3.09438,3231.7,3231.5,1.6911775]
[1738297434257,3.09431,3231.8,3231.5,1.6911775]
[1738297435397,3.09441,3231.7,3231.5,1.6911775]
[1738297435601,3.09444,3231.6,3231.5,1.6911775]
[1738297438192,3.09444,3231.6,3231.5,10.6211775]
[1738297438499,3.09431,3231.8,3231.5,10.6211775]
[1738297438805,6.18863,3231.8,3231.5,10.6211775]
[1738297439124,3.09434,3231.7,3231.6,1.09591641]
[1738297439319,3.09434,3231.7,3231.5,10.6211775]
[1738297439683,3.09431,3231.8,3231.5,10.6211775]
[1738297440102,3.09396,3232.1,3231.5,4.7856275]
[1738297440305,3.09407,3232.0,3231.6,0.03093952]
[1738297440523,3.91209,3232.2,3231.3,3.88771]
[1738297440524,0.8182,3232.2,3231.3,0.793]
[1738297440676,3.09442,3231.7,3231.4,0.201]
[1738297440872,3.09442,3231.7,3231.3,0.793]
[1738297441071,0.18752829,3231.6,3231.3,0.793]
[1738297441267,3.28198829,3231.6,3231.3,0.793]
[1738297441473,3.09479,3231.3,3231.0,9.131]
[1738297441700,3.09479,3231.3,3231.1,0.98824]
[1738297441871,0.18774797,3231.2,3231.0,0.23194642]
[1738297442074,3.09458,3231.5,3231.0,0.23194642]
[1738297442275,0.18771659,3231.1,3231.0,0.23194642]
[1738297442469,3.09465,3231.4,3231.0,0.201]
[1738297442702,0.18771659,3231.1,3231.0,0.201]
[1738297443000,0.18771659,3231.1,3231.0,0.60576]
[1738297443207,3.09465,3231.4,3231.0,0.60576]
[1738297443406,0.18771659,3231.1,3231.0,0.60576]
[1738297443590,3.09465,3231.4,3231.0,0.60576]
[1738297443903,0.1876852,3231.1,3231.0,0.60576]
[1738297444105,3.09473,3231.3,3230.9,0.7514]
[1738297444402,3.09473,3231.3,3231.0,0.23148089]
[1738297444593,0.18762245,3231.2,3231.0,0.23148089]
[1738297445014,0.18762245,3231.2,3231.1,0.28934709]
[1738297446385,3.09466,3231.4,3231.1,0.28934709]
[1738297446596,0.18763815,3231.2,3231.1,0.52081632]
[1738297446797,3.09466,3231.4,3231.1,0.52081632]
[1738297447000,0.18763815,3231.2,3231.1,0.52081632]
[1738297447298,3.09475,3231.3,3231.1,0.52081632]
[1738297447501,0.18763815,3231.2,3231.1,0.52081632]
[1738297448099,0.18763815,3231.2,3231.1,0.28934709]
[1738297450216,3.28245815,3231.2,3231.1,0.28934709]
[1738297452518,0.18763815,3231.2,3231.1,0.28934709]
[1738297452886,3.09464,3231.4,3231.1,0.28934709]
[1738297453110,0.18749692,3231.2,3231.1,0.28934709]
[1738297453420,0.18749692,3231.2,3231.1,0.8062]
[1738297453638,3.0944,3231.7,3231.1,3.90112]
[1738297453809,3.0944,3231.7,3231.2,0.390112]
[1738297454521,3.0944,3231.7,3231.3,0.28918896]
[1738297455724,3.09445,3231.6,3231.3,0.28918896]
[1738297455922,3.09445,3231.6,3231.4,0.28918896]
[1738297456149,3.0944,3231.7,3231.4,0.28918896]
[1738297457241,3.0944,3231.7,3231.1,3.93205443]
[1738297457466,3.0944,3231.7,3231.2,0.39320544]
[1738297458266,3.0944,3231.7,3231.3,0.2891998]
[1738297458750,3.09416,3231.9,3231.3,0.2891998]
[1738297458939,3.09432,3231.8,3231.3,0.2891998]
[1738297459338,3.09432,3231.8,3231.4,0.2891998]
[1738297459626,0.8233,3232.0,3231.5,0.8004]
[1738297459921,3.09419,3231.9,3231.5,0.8004]
[1738297460324,0.1875832,3231.8,3231.5,0.8004]
[1738297460740,3.2818532,3231.8,3231.5,0.8004]
[1738297462109,0.1875832,3231.8,3231.5,0.8004]
[1738297462313,0.1875832,3231.8,3231.6,0.42043437]
[1738297462621,3.094,3232.1,3231.6,0.42043437]
[1738297462797,0.18770089,3231.7,3231.6,0.42043437]
[1738297462999,3.094,3232.1,3231.6,0.42043437]
[1738297463352,0.18770875,3231.7,3231.6,4.86527437]
[1738297463652,0.8072,3232.5,3231.7,3.78085744]
[1738297463653,3.09383,3232.3,3231.7,3.78085744]
[1738297463812,3.09383,3232.3,3231.8,0.23193776]
[1738297464150,3.09383,3232.3,3231.8,0.52091758]
[1738297465445,3.09383,3232.3,3231.9,0.28897982]
[1738297466946,3.09383,3232.3,3231.9,1.04337982]
[1738297467300,3.09383,3232.3,3231.9,0.7544]
[1738297467515,3.09389,3232.2,3231.9,0.7544]
[1738297467712,3.09398,3232.1,3231.9,0.9554]
[1738297468041,3.09398,3232.1,3231.9,1.11959274]
[1738297469094,3.09383,3232.3,3231.9,1.11959274]
[1738297469482,0.18788527,3232.2,3231.9,1.11959274]
[1738297469641,3.09383,3232.3,3231.9,1.11959274]
[1738297470060,0.18787743,3232.2,3231.9,1.11959274]
[1738297470261,3.09383,3232.3,3231.9,1.11959274]
[1738297470490,0.18787743,3232.1,3231.9,1.11959274]
[1738297470694,3.09383,3232.3,3231.9,1.11959274]
[1738297471060,0.18787743,3232.2,3231.9,1.11959274]
[1738297471259,3.28180743,3232.2,3231.9,1.11959274]
[1738297471645,3.09403,3232.1,3231.9,1.11959274]
[1738297472045,0.18787743,3232.0,3231.9,1.11959274]
[1738297472754,0.18787743,3232.0,3231.9,1.40824155]
[1738297472978,3.09383,3232.3,3231.9,1.40824155]
[1738297473145,0.18787743,3232.0,3231.9,1.40824155]
[1738297473347,3.09383,3232.3,3231.9,1.40824155]
[1738297473598,0.18787743,3232.0,3231.9,1.40824155]
[1738297473889,0.18787743,3232.2,3231.9,1.40824155]
[1738297474039,0.18787743,3232.2,3231.9,0.28864881]
[1738297474376,3.09405,3232.0,3231.7,0.954]
[1738297475183,0.18799114,3231.9,3231.7,0.753]
[1738297475384,0.18799114,3231.9,3231.6,0.201]
[1738297477889,3.28215114,3231.9,3231.6,0.201]
[1738297478588,0.18799114,3231.9,3231.6,0.201]
[1738297478890,3.84813,3232.1,3231.6,0.201]
[1738297479084,0.18799114,3231.8,3231.6,0.201]
[1738297479262,3.84813,3232.1,3231.6,0.201]
[1738297479465,0.18799114,3231.7,3231.6,0.201]
[1738297479785,3.84813,3232.1,3231.6,0.61276116]
[1738297479965,0.18799114,3231.7,3231.6,0.61276116]
[1738297480297,0.18799114,3231.7,3231.6,0.201]
[1738297480473,3.84813,3232.1,3231.6,0.201]
[1738297480680,0.18799114,3231.7,3231.6,0.201]
[1738297480851,3.84813,3232.1,3231.6,0.201]
[1738297481183,0.18799114,3231.7,3231.6,0.201]
[1738297481484,0.18799114,3231.7,3231.6,0.61276616]
[1738297481685,3.84813,3232.1,3231.6,0.61276616]
[1738297481989,0.18799114,3231.7,3231.6,0.61276616]
[1738297482285,3.84813,3232.1,3231.6,0.61276616]
[1738297482455,0.18799114,3231.7,3231.6,0.61276616]